[Event "Titled Tuesday Blitz February 21 Early 2023"]
[White "Aldokhin, Ivan"]
[Black "Bilan, Danila"]
[WhiteFideId "24115720"]
[BlackFideId "24161918"]
[WhiteElo "2413"]
[BlackElo "2303"]
[Result "1-0"]
[Round "09"]
[TimeControl "180+2"]
[Date "2023.02.21"]
[WhiteClock "0:00:05"]
[BlackClock "0:00:01"]

1. e4 {[%clk 0:03:00]}  c6 {[%clk 0:03:00]} 2. Nc3 {[%clk 0:02:59]}  d5 {[%clk 0:03:01]} 3. d4 {[%clk 0:02:57]}  dxe4 {[%clk 0:02:58]} 4. Nxe4 {[%clk 0:02:58]}  Nf6 {[%clk 0:02:58]} 5. Nxf6+ {[%clk 0:02:59]}  exf6 {[%clk 0:02:59]} 6. c3 {[%clk 0:02:59]}  Bd6 {[%clk 0:02:59]} 7. Bd3 {[%clk 0:03:00]}  h5 {[%clk 0:02:59]} 8. Ne2 {[%clk 0:02:56]}  h4 {[%clk 0:02:58]} 9. h3 {[%clk 0:02:52]}  Qc7 {[%clk 0:02:58]} 10. O-O {[%clk 0:02:43]}  Nd7 {[%clk 0:02:40]} 11. Kh1 {[%clk 0:02:37]}  O-O {[%clk 0:02:34]} 12. f4 {[%clk 0:02:19]}  Qd8 {[%clk 0:01:24]} 13. Qe1 {[%clk 0:02:13]}  f5 {[%clk 0:01:24]} 14. Bxf5 {[%clk 0:02:06]}  Re8 {[%clk 0:01:24]} 15. Bd3 {[%clk 0:01:50]}  Nf8 {[%clk 0:01:09]} 16. Qf2 {[%clk 0:01:49]}  f5 {[%clk 0:00:58]} 17. Ng1 {[%clk 0:01:45]}  Ng6 {[%clk 0:00:57]} 18. Nf3 {[%clk 0:01:28]}  Bxf4 {[%clk 0:00:42]} 19. Bc4+ {[%clk 0:01:16]}  Be6 {[%clk 0:00:39]} 20. Bxe6+ {[%clk 0:01:16]}  Rxe6 {[%clk 0:00:40]} 21. Bxf4 {[%clk 0:01:13]}  Nxf4 {[%clk 0:00:38]} 22. Nxh4 {[%clk 0:01:12]}  g5 {[%clk 0:00:19]} 23. Nxf5 {[%clk 0:01:11]}  Re2 {[%clk 0:00:14]} 24. Qf3 {[%clk 0:01:01]}  Rxg2 {[%clk 0:00:10]} 25. Rg1 {[%clk 0:01:01]}  Rxg1+ {[%clk 0:00:08]} 26. Rxg1 {[%clk 0:01:02]}  Kf7 {[%clk 0:00:05]} 27. Nh6+ {[%clk 0:00:46]}  Kf6 {[%clk 0:00:05]} 28. Ng4+ {[%clk 0:00:46]}  Kg7 {[%clk 0:00:05]} 29. Ne5 {[%clk 0:00:41]}  Kf6 {[%clk 0:00:05]} 30. Qg4 {[%clk 0:00:27]}  Qd5+ {[%clk 0:00:04]} 31. Kh2 {[%clk 0:00:23]}  Rg8 {[%clk 0:00:05]} 32. Rf1 {[%clk 0:00:19]}  Qxa2 {[%clk 0:00:04]} 33. Rf2 {[%clk 0:00:15]}  Qe6 {[%clk 0:00:02]} 34. h4 {[%clk 0:00:09]}  Qxg4 {[%clk 0:00:02]} 35. Nxg4+ {[%clk 0:00:10]}  Kf5 {[%clk 0:00:02]} 36. Nh6+ {[%clk 0:00:08]}  Ke4 {[%clk 0:00:03]} 37. Nxg8 {[%clk 0:00:08]}  gxh4 {[%clk 0:00:03]} 38. Nf6+ {[%clk 0:00:07]}  Ke3 {[%clk 0:00:03]} 39. Ng4+ {[%clk 0:00:07]}  Ke4 {[%clk 0:00:03]} 40. Rf1 {[%clk 0:00:06]}  Nd3 {[%clk 0:00:03]} 41. Rf7 {[%clk 0:00:06]}  Nxb2 {[%clk 0:00:03]} 42. Rxb7 {[%clk 0:00:06]}  Na4 {[%clk 0:00:04]} 43. Rc7 {[%clk 0:00:06]}  Kd5 {[%clk 0:00:03]} 44. Ne5 {[%clk 0:00:07]}  Nxc3 {[%clk 0:00:04]} 45. Nxc6 {[%clk 0:00:04]}  Nb5 {[%clk 0:00:04]} 46. Rc8 {[%clk 0:00:04]}  Nd6 {[%clk 0:00:04]} 47. Rc7 {[%clk 0:00:04]}  Nb5 {[%clk 0:00:05]} 48. Ne7+ {[%clk 0:00:04]}  Kd6 {[%clk 0:00:05]} 49. Rb7 {[%clk 0:00:04]}  Nxd4 {[%clk 0:00:04]} 50. Rxa7 {[%clk 0:00:04]}  Nb5 {[%clk 0:00:05]} 51. Nf5+ {[%clk 0:00:05]}  Kc5 {[%clk 0:00:05]} 52. Ra5 {[%clk 0:00:05]}  Kb4 {[%clk 0:00:05]} 53. Ra8 {[%clk 0:00:05]}  Kc5 {[%clk 0:00:05]} 54. Nxh4 {[%clk 0:00:06]}  Kd4 {[%clk 0:00:06]} 55. Nf3+ {[%clk 0:00:06]}  Ke3 {[%clk 0:00:06]} 56. Rf8 {[%clk 0:00:06]}  Nc3 {[%clk 0:00:06]} 57. Kg2 {[%clk 0:00:06]}  Ne4 {[%clk 0:00:05]} 58. Re8 {[%clk 0:00:07]}  Kf4 {[%clk 0:00:05]} 59. Ne1 {[%clk 0:00:06]}  Nc3 {[%clk 0:00:03]} 60. Nd3+ {[%clk 0:00:06]}  Kf5 {[%clk 0:00:04]} 61. Kf3 {[%clk 0:00:06]}  Kf6 {[%clk 0:00:02]} 62. Re5 {[%clk 0:00:07]}  Kg6 {[%clk 0:00:01]} 63. Rc5 {[%clk 0:00:05]} 1-0


[Site "https://www.chess.com"]

[Event "Titled Tuesday Blitz February 21 Early 2023"]
[White "Toncheva, Nadya"]
[Black "Skvortsov, Andrei"]
[WhiteFideId "2924056"]
[BlackFideId "24108600"]
[WhiteElo "2295"]
[BlackElo "2313"]
[Result "0-1"]
[Round "09"]
[TimeControl "180+2"]
[Date "2023.02.21"]
[WhiteClock "0:00:02"]
[BlackClock "0:00:52"]

1. d4 {[%clk 0:03:00]}  Nf6 {[%clk 0:02:57]} 2. c4 {[%clk 0:03:01]}  g6 {[%clk 0:02:57]} 3. Nc3 {[%clk 0:03:01]}  Bg7 {[%clk 0:02:57]} 4. e4 {[%clk 0:03:02]}  O-O {[%clk 0:02:58]} 5. Be2 {[%clk 0:03:02]}  d6 {[%clk 0:02:57]} 6. Bg5 {[%clk 0:03:03]}  c5 {[%clk 0:02:52]} 7. d5 {[%clk 0:03:03]}  a6 {[%clk 0:02:49]} 8. Qd2 {[%clk 0:03:02]}  Re8 {[%clk 0:02:48]} 9. h4 {[%clk 0:03:00]}  h5 {[%clk 0:02:47]} 10. O-O-O {[%clk 0:02:54]}  b5 {[%clk 0:02:38]} 11. Bd3 {[%clk 0:02:29]}  Nbd7 {[%clk 0:02:36]} 12. Nf3 {[%clk 0:02:21]}  Ng4 {[%clk 0:02:35]} 13. Kb1 {[%clk 0:02:09]}  b4 {[%clk 0:02:30]} 14. Na4 {[%clk 0:02:04]}  Nf8 {[%clk 0:02:24]} 15. b3 {[%clk 0:01:58]}  Bd7 {[%clk 0:02:24]} 16. Nb2 {[%clk 0:01:55]}  a5 {[%clk 0:02:24]} 17. Bc2 {[%clk 0:01:49]}  Nh7 {[%clk 0:02:20]} 18. Nh2 {[%clk 0:01:44]}  a4 {[%clk 0:02:12]} 19. Nxa4 {[%clk 0:01:38]}  Bxa4 {[%clk 0:02:08]} 20. bxa4 {[%clk 0:01:38]}  b3 {[%clk 0:02:07]} 21. Bxb3 {[%clk 0:01:29]}  Nxh2 {[%clk 0:02:02]} 22. Rxh2 {[%clk 0:01:29]}  Qb6 {[%clk 0:02:02]} 23. Kc1 {[%clk 0:01:18]}  Reb8 {[%clk 0:02:02]} 24. Qc2 {[%clk 0:01:14]}  Qb4 {[%clk 0:02:02]} 25. Rh3 {[%clk 0:01:08]}  Nxg5 {[%clk 0:01:58]} 26. hxg5 {[%clk 0:01:08]}  Qa3+ {[%clk 0:01:53]} 27. Kd2 {[%clk 0:01:06]}  Be5 {[%clk 0:01:45]} 28. Ke1 {[%clk 0:01:02]}  Bf4 {[%clk 0:01:42]} 29. Kf1 {[%clk 0:00:45]}  Bxg5 {[%clk 0:01:41]} 30. Qe2 {[%clk 0:00:36]}  Bf6 {[%clk 0:01:39]} 31. Kg1 {[%clk 0:00:31]}  Kg7 {[%clk 0:01:32]} 32. Rhd3 {[%clk 0:00:25]}  Qb4 {[%clk 0:01:30]} 33. Qf3 {[%clk 0:00:24]}  Rh8 {[%clk 0:01:29]} 34. Qe2 {[%clk 0:00:23]}  g5 {[%clk 0:01:26]} 35. Rg3 {[%clk 0:00:21]}  Kf8 {[%clk 0:01:26]} 36. Rf3 {[%clk 0:00:21]}  Kg7 {[%clk 0:01:26]} 37. Rg3 {[%clk 0:00:21]}  Kf8 {[%clk 0:01:20]} 38. Rf3 {[%clk 0:00:21]}  Rh6 {[%clk 0:01:21]} 39. Rh3 {[%clk 0:00:21]}  g4 {[%clk 0:01:19]} 40. Rhd3 {[%clk 0:00:14]}  Be5 {[%clk 0:01:19]} 41. Qe3 {[%clk 0:00:14]}  Rg6 {[%clk 0:01:18]} 42. Qe2 {[%clk 0:00:13]}  Kg7 {[%clk 0:01:18]} 43. Qd2 {[%clk 0:00:11]}  Qb7 {[%clk 0:01:15]} 44. Qe2 {[%clk 0:00:11]}  h4 {[%clk 0:01:14]} 45. Kf1 {[%clk 0:00:08]}  Qd7 {[%clk 0:01:14]} 46. Qe3 {[%clk 0:00:08]}  Rh8 {[%clk 0:01:11]} 47. Ke2 {[%clk 0:00:08]}  h3 {[%clk 0:01:11]} 48. gxh3 {[%clk 0:00:05]}  gxh3 {[%clk 0:01:11]} 49. Rh1 {[%clk 0:00:04]}  h2 {[%clk 0:01:09]} 50. Qf3 {[%clk 0:00:04]}  Rg1 {[%clk 0:01:08]} 51. Rd1 {[%clk 0:00:04]}  Rg6 {[%clk 0:01:06]} 52. Rdf1 {[%clk 0:00:04]}  Bd4 {[%clk 0:01:05]} 53. Rd1 {[%clk 0:00:04]}  Be5 {[%clk 0:01:05]} 54. Rdf1 {[%clk 0:00:04]}  Qb7 {[%clk 0:01:05]} 55. Rd1 {[%clk 0:00:05]}  Qb4 {[%clk 0:01:05]} 56. Rc1 {[%clk 0:00:04]}  Rh4 {[%clk 0:01:03]} 57. Rcd1 {[%clk 0:00:04]}  Qa3 {[%clk 0:01:02]} 58. Rc1 {[%clk 0:00:04]}  Qxc1 {[%clk 0:00:54]} 59. Rxc1 {[%clk 0:00:04]}  Rg1 {[%clk 0:00:55]} 60. Qf5 {[%clk 0:00:01]}  h1=Q {[%clk 0:00:53]} 61. Qg5+ {[%clk 0:00:01]}  Rxg5 {[%clk 0:00:52]} 62. Rxh1 {[%clk 0:00:02]}  Rxh1 {[%clk 0:00:52]} 0-1


[Site "https://www.chess.com"]

[Event "Titled Tuesday Blitz February 21 Early 2023"]
[White "Andreev, Eduard"]
[Black "Jaskolka, Tomasz"]
[WhiteFideId "14103400"]
[BlackFideId "1170791"]
[WhiteElo "2413"]
[BlackElo "2238"]
[Result "1-0"]
[Round "09"]
[TimeControl "180+2"]
[Date "2023.02.21"]
[WhiteClock "0:00:19"]
[BlackClock "0:00:07"]

1. d4 {[%clk 0:02:58]}  d5 {[%clk 0:02:58]} 2. c4 {[%clk 0:02:56]}  e5 {[%clk 0:02:58]} 3. dxe5 {[%clk 0:02:54]}  d4 {[%clk 0:02:56]} 4. Nf3 {[%clk 0:02:55]}  Nc6 {[%clk 0:02:56]} 5. Nbd2 {[%clk 0:02:54]}  Nge7 {[%clk 0:02:38]} 6. Nb3 {[%clk 0:02:54]}  Nf5 {[%clk 0:02:38]} 7. g3 {[%clk 0:02:54]}  Be6 {[%clk 0:02:34]} 8. Bg2 {[%clk 0:02:54]}  Bxc4 {[%clk 0:02:29]} 9. O-O {[%clk 0:02:54]}  Bd5 {[%clk 0:02:27]} 10. Qc2 {[%clk 0:02:37]}  g6 {[%clk 0:02:18]} 11. Rd1 {[%clk 0:02:28]}  Bg7 {[%clk 0:01:52]} 12. Nfxd4 {[%clk 0:02:10]}  Nfxd4 {[%clk 0:01:42]} 13. Nxd4 {[%clk 0:02:02]}  Nxe5 {[%clk 0:00:53]} 14. Bxd5 {[%clk 0:01:55]}  Qxd5 {[%clk 0:00:49]} 15. Nf5 {[%clk 0:01:40]}  Qc6 {[%clk 0:00:44]} 16. Nxg7+ {[%clk 0:01:37]}  Kf8 {[%clk 0:00:44]} 17. Qxc6 {[%clk 0:01:35]}  Nxc6 {[%clk 0:00:44]} 18. Bh6 {[%clk 0:01:34]}  Ke7 {[%clk 0:00:40]} 19. Rd3 {[%clk 0:01:14]}  f6 {[%clk 0:00:28]} 20. Rad1 {[%clk 0:01:12]}  Rhd8 {[%clk 0:00:26]} 21. Re3+ {[%clk 0:00:57]}  Kf7 {[%clk 0:00:22]} 22. Rxd8 {[%clk 0:00:57]}  Nxd8 {[%clk 0:00:20]} 23. Re8 {[%clk 0:00:47]}  Rc8 {[%clk 0:00:20]} 24. Rh8 {[%clk 0:00:44]}  g5 {[%clk 0:00:13]} 25. g4 {[%clk 0:00:38]}  Kg6 {[%clk 0:00:11]} 26. Nf5 {[%clk 0:00:38]}  c5 {[%clk 0:00:11]} 27. Ne7+ {[%clk 0:00:37]}  Kxh6 {[%clk 0:00:11]} 28. Nxc8 {[%clk 0:00:37]}  Ne6 {[%clk 0:00:11]} 29. Re8 {[%clk 0:00:36]}  Nd4 {[%clk 0:00:11]} 30. b3 {[%clk 0:00:34]}  f5 {[%clk 0:00:10]} 31. gxf5 {[%clk 0:00:34]}  Nxf5 {[%clk 0:00:10]} 32. Kg2 {[%clk 0:00:33]}  b6 {[%clk 0:00:09]} 33. Re6+ {[%clk 0:00:33]}  Kh5 {[%clk 0:00:09]} 34. Rc6 {[%clk 0:00:32]}  a5 {[%clk 0:00:09]} 35. Rxb6 {[%clk 0:00:32]}  a4 {[%clk 0:00:10]} 36. bxa4 {[%clk 0:00:32]}  c4 {[%clk 0:00:11]} 37. Rc6 {[%clk 0:00:32]}  c3 {[%clk 0:00:11]} 38. Rxc3 {[%clk 0:00:32]}  Nd4 {[%clk 0:00:11]} 39. Ne7 {[%clk 0:00:30]}  Nxe2 {[%clk 0:00:12]} 40. Rh3+ {[%clk 0:00:29]}  Kg4 {[%clk 0:00:12]} 41. Rxh7 {[%clk 0:00:29]}  Nf4+ {[%clk 0:00:12]} 42. Kf1 {[%clk 0:00:29]}  Nd3 {[%clk 0:00:11]} 43. a5 {[%clk 0:00:28]}  Nc5 {[%clk 0:00:11]} 44. Nc6 {[%clk 0:00:26]}  Kf3 {[%clk 0:00:10]} 45. Rf7+ {[%clk 0:00:25]}  Kg4 {[%clk 0:00:11]} 46. Nb4 {[%clk 0:00:25]}  Kh3 {[%clk 0:00:10]} 47. a6 {[%clk 0:00:24]}  g4 {[%clk 0:00:10]} 48. a7 {[%clk 0:00:24]}  g3 {[%clk 0:00:10]} 49. hxg3 {[%clk 0:00:23]}  Nd3 {[%clk 0:00:07]} 50. Nxd3 {[%clk 0:00:22]}  Kg4 {[%clk 0:00:06]} 51. a8=Q {[%clk 0:00:21]}  Kh3 {[%clk 0:00:06]} 52. Rf4 {[%clk 0:00:19]}  Kh2 {[%clk 0:00:07]} 53. Qg2# {[%clk 0:00:19]} 1-0


[Site "https://www.chess.com"]

[Event "Titled Tuesday Blitz February 21 Early 2023"]
[White "Sharapov, Evgeny"]
[Black "Ilinca Ilinca, Felix Antonio"]
[WhiteFideId "14103133"]
[BlackFideId "54764998"]
[WhiteElo "2375"]
[BlackElo "2266"]
[Result "0-1"]
[Round "09"]
[TimeControl "180+2"]
[Date "2023.02.21"]
[WhiteClock "0:01:29"]
[BlackClock "0:01:03"]

1. e4 {[%clk 0:02:54]}  c5 {[%clk 0:02:58]} 2. Nf3 {[%clk 0:02:53]}  e6 {[%clk 0:02:58]} 3. d4 {[%clk 0:02:53]}  cxd4 {[%clk 0:02:59]} 4. Nxd4 {[%clk 0:02:53]}  Nf6 {[%clk 0:02:59]} 5. Nc3 {[%clk 0:02:53]}  Nc6 {[%clk 0:02:57]} 6. Ndb5 {[%clk 0:02:53]}  Bc5 {[%clk 0:02:55]} 7. Nd6+ {[%clk 0:02:52]}  Ke7 {[%clk 0:02:55]} 8. Nxc8+ {[%clk 0:02:52]}  Rxc8 {[%clk 0:02:54]} 9. Bd3 {[%clk 0:02:52]}  a6 {[%clk 0:02:29]} 10. O-O {[%clk 0:02:51]}  h5 {[%clk 0:02:26]} 11. Bg5 {[%clk 0:02:49]}  Qc7 {[%clk 0:02:20]} 12. Kh1 {[%clk 0:02:46]}  Ke8 {[%clk 0:02:16]} 13. f4 {[%clk 0:02:45]}  Ng4 {[%clk 0:02:12]} 14. Qd2 {[%clk 0:02:37]}  f6 {[%clk 0:02:07]} 15. Bh4 {[%clk 0:02:35]}  Be3 {[%clk 0:02:05]} 16. Qe2 {[%clk 0:02:31]}  Bxf4 {[%clk 0:02:02]} 17. h3 {[%clk 0:02:26]}  Bg5 {[%clk 0:01:57]} 18. g3 {[%clk 0:02:19]}  Bxh4 {[%clk 0:01:50]} 19. gxh4 {[%clk 0:02:19]}  Qg3 {[%clk 0:01:48]} 20. hxg4 {[%clk 0:02:13]}  hxg4 {[%clk 0:01:45]} 21. Qg2 {[%clk 0:02:13]}  Rxh4+ {[%clk 0:01:43]} 22. Kg1 {[%clk 0:02:13]}  Qe3+ {[%clk 0:01:40]} 23. Qf2 {[%clk 0:02:10]}  Qh6 {[%clk 0:01:32]} 24. Qg2 {[%clk 0:02:07]}  Ne5 {[%clk 0:01:29]} 25. Be2 {[%clk 0:01:58]}  Kf7 {[%clk 0:01:18]} 26. Nd1 {[%clk 0:01:38]}  Rxc2 {[%clk 0:01:15]} 27. Rf2 {[%clk 0:01:34]}  Rxe2 {[%clk 0:01:08]} 28. Rxe2 {[%clk 0:01:33]}  Nf3+ {[%clk 0:01:07]} 29. Kf2 {[%clk 0:01:33]}  Rh2 {[%clk 0:01:06]} 30. Ne3 {[%clk 0:01:33]}  Qh4+ {[%clk 0:01:03]} 31. Kf1 {[%clk 0:01:29]}  Rh1+ {[%clk 0:01:03]} 0-1


[Site "https://www.chess.com"]

[Event "Titled Tuesday Blitz February 21 Early 2023"]
[White "Weetik, Vjacheslav"]
[Black "Koridze, Lile"]
[WhiteFideId "4153472"]
[BlackFideId "13612514"]
[WhiteElo "2423"]
[BlackElo "2191"]
[Result "1-0"]
[Round "09"]
[TimeControl "180+2"]
[Date "2023.02.21"]
[WhiteClock "0:00:05"]
[BlackClock "0:01:49"]

1. d4 {[%clk 0:02:58]}  Nf6 {[%clk 0:02:58]} 2. c4 {[%clk 0:02:58]}  e6 {[%clk 0:02:56]} 3. g3 {[%clk 0:02:57]}  d5 {[%clk 0:02:56]} 4. Nf3 {[%clk 0:02:56]}  Bb4+ {[%clk 0:02:55]} 5. Bd2 {[%clk 0:02:56]}  Be7 {[%clk 0:02:55]} 6. Bg2 {[%clk 0:02:56]}  O-O {[%clk 0:02:55]} 7. O-O {[%clk 0:02:57]}  c5 {[%clk 0:02:55]} 8. dxc5 {[%clk 0:02:36]}  Bxc5 {[%clk 0:02:55]} 9. cxd5 {[%clk 0:02:33]}  Nxd5 {[%clk 0:02:53]} 10. Nc3 {[%clk 0:02:31]}  Nc6 {[%clk 0:02:52]} 11. Nxd5 {[%clk 0:02:08]}  Qxd5 {[%clk 0:02:51]} 12. Bc3 {[%clk 0:02:09]}  Rd8 {[%clk 0:02:47]} 13. Qc2 {[%clk 0:01:49]}  Qd7 {[%clk 0:02:25]} 14. Bxg7 {[%clk 0:01:05]}  Bxf2+ {[%clk 0:02:22]} 15. Rxf2 {[%clk 0:01:02]}  Kxg7 {[%clk 0:02:22]} 16. Qc3+ {[%clk 0:00:48]}  f6 {[%clk 0:02:22]} 17. Raf1 {[%clk 0:00:34]}  Qe7 {[%clk 0:02:19]} 18. Ng5 {[%clk 0:00:28]}  Nd4 {[%clk 0:02:09]} 19. Ne4 {[%clk 0:00:27]}  f5 {[%clk 0:02:06]} 20. e3 {[%clk 0:00:26]}  e5 {[%clk 0:01:55]} 21. exd4 {[%clk 0:00:23]}  exd4 {[%clk 0:01:54]} 22. Qc5 {[%clk 0:00:15]}  Qxc5 {[%clk 0:01:52]} 23. Nxc5 {[%clk 0:00:15]}  Rb8 {[%clk 0:01:52]} 24. Re1 {[%clk 0:00:11]}  b6 {[%clk 0:01:52]} 25. Ne6+ {[%clk 0:00:10]}  Bxe6 {[%clk 0:01:52]} 26. Rxe6 {[%clk 0:00:11]}  d3 {[%clk 0:01:52]} 27. Rd2 {[%clk 0:00:11]}  Rbc8 {[%clk 0:01:52]} 28. Bf1 {[%clk 0:00:10]}  Rc1 {[%clk 0:01:51]} 29. Kf2 {[%clk 0:00:11]}  Rc2 {[%clk 0:01:51]} 30. Ke3 {[%clk 0:00:07]}  Rdc8 {[%clk 0:01:51]} 31. Bxd3 {[%clk 0:00:07]}  Rc1 {[%clk 0:01:51]} 32. Re7+ {[%clk 0:00:06]}  Kf8 {[%clk 0:01:51]} 33. Rxa7 {[%clk 0:00:07]}  Re1+ {[%clk 0:01:50]} 34. Kf2 {[%clk 0:00:06]}  Ree8 {[%clk 0:01:50]} 35. Bxf5 {[%clk 0:00:06]}  Rc5 {[%clk 0:01:50]} 36. g4 {[%clk 0:00:06]}  h5 {[%clk 0:01:50]} 37. h3 {[%clk 0:00:06]}  hxg4 {[%clk 0:01:50]} 38. hxg4 {[%clk 0:00:07]}  Ree5 {[%clk 0:01:47]} 39. Rd8+ {[%clk 0:00:06]}  Re8 {[%clk 0:01:47]} 40. Rdd7 {[%clk 0:00:07]}  Ree5 {[%clk 0:01:47]} 41. Ra8+ {[%clk 0:00:06]}  Re8 {[%clk 0:01:47]} 42. Rxe8+ {[%clk 0:00:06]}  Kxe8 {[%clk 0:01:47]} 43. Rb7 {[%clk 0:00:07]}  b5 {[%clk 0:01:47]} 44. Kg3 {[%clk 0:00:06]}  Re5 {[%clk 0:01:46]} 45. Kf4 {[%clk 0:00:06]}  Re2 {[%clk 0:01:47]} 46. Rxb5 {[%clk 0:00:06]}  Ke7 {[%clk 0:01:47]} 47. a4 {[%clk 0:00:06]}  Kd6 {[%clk 0:01:47]} 48. Kg5 {[%clk 0:00:06]}  Re8 {[%clk 0:01:46]} 49. a5 {[%clk 0:00:06]}  Ra8 {[%clk 0:01:46]} 50. b4 {[%clk 0:00:06]}  Rd8 {[%clk 0:01:46]} 51. Rb6+ {[%clk 0:00:06]}  Kc7 {[%clk 0:01:46]} 52. b5 {[%clk 0:00:06]}  Rd5 {[%clk 0:01:47]} 53. Rc6+ {[%clk 0:00:05]}  Kb7 {[%clk 0:01:46]} 54. a6+ {[%clk 0:00:06]}  Ka7 {[%clk 0:01:47]} 55. Rc7+ {[%clk 0:00:06]}  Kb8 {[%clk 0:01:47]} 56. Rb7+ {[%clk 0:00:06]}  Ka8 {[%clk 0:01:48]} 57. Rf7 {[%clk 0:00:05]}  Kb8 {[%clk 0:01:48]} 58. Kf6 {[%clk 0:00:06]}  Ka8 {[%clk 0:01:48]} 59. Be4 {[%clk 0:00:05]}  Kb8 {[%clk 0:01:48]} 60. Bxd5 {[%clk 0:00:05]}  Kc8 {[%clk 0:01:48]} 61. a7 {[%clk 0:00:05]}  Kd8 {[%clk 0:01:49]} 62. a8=Q# {[%clk 0:00:05]} 1-0


[Site "https://www.chess.com"]

[Event "Titled Tuesday Blitz February 21 Early 2023"]
[White "Aydincelebi, Kagan"]
[Black "Buchenau, Frank"]
[WhiteFideId "6361102"]
[BlackFideId "4604350"]
[WhiteElo "2280"]
[BlackElo "2222"]
[Result "1-0"]
[Round "09"]
[TimeControl "180+2"]
[Date "2023.02.21"]
[WhiteClock "0:00:56"]
[BlackClock "0:00:26"]

1. e4 {[%clk 0:03:00]}  e6 {[%clk 0:03:00]} 2. d4 {[%clk 0:03:00]}  d5 {[%clk 0:03:00]} 3. Nc3 {[%clk 0:03:01]}  Nf6 {[%clk 0:02:59]} 4. Bg5 {[%clk 0:03:00]}  dxe4 {[%clk 0:02:59]} 5. Nxe4 {[%clk 0:03:01]}  Be7 {[%clk 0:02:59]} 6. Bxf6 {[%clk 0:03:02]}  gxf6 {[%clk 0:02:59]} 7. Qd2 {[%clk 0:03:03]}  c5 {[%clk 0:02:50]} 8. Nxc5 {[%clk 0:02:57]}  Bxc5 {[%clk 0:02:48]} 9. dxc5 {[%clk 0:02:58]}  Qxd2+ {[%clk 0:02:47]} 10. Kxd2 {[%clk 0:02:59]}  O-O {[%clk 0:02:42]} 11. Nf3 {[%clk 0:02:51]}  Rd8+ {[%clk 0:02:39]} 12. Kc3 {[%clk 0:02:52]}  Nd7 {[%clk 0:02:32]} 13. Rd1 {[%clk 0:02:47]}  Rf8 {[%clk 0:02:28]} 14. b4 {[%clk 0:02:40]}  a5 {[%clk 0:02:28]} 15. a3 {[%clk 0:02:40]}  axb4+ {[%clk 0:02:28]} 16. axb4 {[%clk 0:02:41]}  f5 {[%clk 0:02:03]} 17. Bd3 {[%clk 0:02:13]}  Nf6 {[%clk 0:02:03]} 18. Kb3 {[%clk 0:02:11]}  Bd7 {[%clk 0:01:53]} 19. Ra1 {[%clk 0:02:01]}  Bc6 {[%clk 0:01:45]} 20. Ne5 {[%clk 0:02:01]}  Bd5+ {[%clk 0:01:25]} 21. c4 {[%clk 0:01:59]}  Be4 {[%clk 0:01:25]} 22. Bxe4 {[%clk 0:01:55]}  Nxe4 {[%clk 0:01:24]} 23. f3 {[%clk 0:01:51]}  Nf6 {[%clk 0:01:16]} 24. b5 {[%clk 0:01:47]}  Rfc8 {[%clk 0:01:14]} 25. Kb4 {[%clk 0:01:47]}  Ne8 {[%clk 0:01:08]} 26. Rhd1 {[%clk 0:01:38]}  f6 {[%clk 0:01:05]} 27. Nd7 {[%clk 0:01:37]}  Rxa1 {[%clk 0:01:01]} 28. Rxa1 {[%clk 0:01:38]}  Rc7 {[%clk 0:00:59]} 29. Ra8 {[%clk 0:01:30]}  Kf7 {[%clk 0:00:59]} 30. Nb6 {[%clk 0:01:31]}  Ng7 {[%clk 0:00:53]} 31. Nc8 {[%clk 0:01:22]}  f4 {[%clk 0:00:52]} 32. Rb8 {[%clk 0:01:21]}  Nf5 {[%clk 0:00:51]} 33. Nd6+ {[%clk 0:01:19]}  Nxd6 {[%clk 0:00:50]} 34. cxd6 {[%clk 0:01:20]}  Rd7 {[%clk 0:00:49]} 35. c5 {[%clk 0:01:19]}  e5 {[%clk 0:00:49]} 36. Kc4 {[%clk 0:01:19]}  Ke6 {[%clk 0:00:48]} 37. Re8+ {[%clk 0:01:19]}  Kf7 {[%clk 0:00:48]} 38. Rc8 {[%clk 0:01:20]}  Ke6 {[%clk 0:00:47]} 39. Rc7 {[%clk 0:01:05]}  Rxc7 {[%clk 0:00:39]} 40. dxc7 {[%clk 0:01:06]}  Kd7 {[%clk 0:00:38]} 41. b6 {[%clk 0:01:01]}  h5 {[%clk 0:00:34]} 42. Kd5 {[%clk 0:01:01]}  h4 {[%clk 0:00:34]} 43. Ke4 {[%clk 0:00:57]}  Kc8 {[%clk 0:00:28]} 44. Kf5 {[%clk 0:00:57]}  h3 {[%clk 0:00:26]} 45. gxh3 {[%clk 0:00:56]} 1-0


[Site "https://www.chess.com"]